fUSD/lending_fUSD_20250623
["ID","MTS","AMOUNT","RATE_DAILY","PERIOD"]
[367079156,1750651844856,-490.0,0.00032876,7]
[367079158,1750651844866,-491.48028437,0.00032876,7]
[367079160,1750651844876,-558.41,0.00032876,7]
[367079162,1750651844885,-490.0,0.00032876,7]
[367079164,1750651844894,-490.0,0.00032876,7]
[367079166,1750651844904,-490.0,0.00032876,7]
[367079168,1750651844913,-1305.74,0.00032876,7]
[367079170,1750651844922,-490.0,0.00032876,7]
[367079172,1750651844931,-490.0,0.00032876,7]
[367079174,1750651844940,-1481.09,0.00032876,7]
[367079176,1750651844949,-490.0,0.00032876,7]
[367079178,1750651844959,-492.7443296,0.00032876,7]
[367079180,1750651844968,-490.0,0.00032876,7]
[367079182,1750651844978,-490.0,0.00032876,7]
[367079184,1750651844988,-490.0,0.00032876,7]
[367079186,1750651844997,-1609.71,0.00032876,7]
[367079188,1750651845006,-490.0,0.00032876,7]
[367079190,1750651845016,-490.0,0.00032876,7]
[367079192,1750651845025,-490.0,0.00032876,7]
[367079194,1750651845035,-1292.86,0.00032876,7]
[367079196,1750651845044,-1403.74,0.00032876,7]
[367079198,1750651845055,-490.0,0.00032876,7]
[367079200,1750651845066,-1402.76,0.00032876,7]
[367079202,1750651845075,-237.38533067,0.00032876,7]
[367079204,1750651845084,-490.0,0.00032876,7]
[367079206,1750651845094,-490.0,0.00032876,7]
[367079208,1750651845105,-490.0,0.00032876,7]
[367079210,1750651845114,-490.0,0.00032876,7]
[367079212,1750651845123,-945.86,0.00032876,7]
[367079214,1750651845133,-490.0,0.00032876,7]
[367079216,1750651845143,-1938.14,0.00032876,7]
[367079218,1750651845152,-490.0,0.00032876,7]
[367079220,1750651845161,-155.272639,0.00032876,7]
[367079222,1750651845170,-3312.04,0.00032876,2]
[367079224,1750651845180,-490.0,0.00032876,7]
[367079226,1750651845189,-490.0,0.00032876,7]
[367079227,1750651845199,-1700.0,0.00032876,7]
[367079228,1750651845208,-490.0,0.00032876,7]
[367079229,1750651845218,-153.552943,0.00032876,7]
[367079230,1750651845228,-490.0,0.00032876,7]
[367079231,1750651845237,-490.0,0.00032876,7]
[367079232,1750651845247,-803.65,0.00032876,7]
[367079233,1750651845256,-490.0,0.00032876,7]
[367079234,1750651845265,-487.58669622,0.00032876,7]
[367079235,1750651845275,-490.0,0.00032876,7]
[367079236,1750651845284,-490.0,0.00032876,7]
[367079237,1750651845293,-491.89745248,0.00032876,7]
[367079238,1750651845303,-490.0,0.00032876,7]
[367079239,1750651845312,-491.06881529,0.00032876,7]
[367079240,1750651845321,-490.0,0.00032876,7]
[367079241,1750651845330,-887.18,0.00032876,7]
[367079242,1750651845339,-151.476991,0.00032876,7]
[367079243,1750651845348,-490.0,0.00032876,7]
[367079244,1750651845357,-490.0,0.00032876,7]
[367079245,1750651845367,-493.0412646,0.00032876,7]
[367079246,1750651845376,-490.0,0.00032876,7]
[367079247,1750651845385,-904.24,0.00032876,7]
[367079248,1750651845394,-490.0,0.00032876,7]
[367079249,1750651845403,-490.0,0.00032876,7]
[367079250,1750651845413,-2151.85,0.00032876,7]
[367079251,1750651845422,-490.0,0.00032876,7]
[367079252,1750651845431,-224.089707,0.00032876,7]
[367079253,1750651845440,-814.28,0.00032876,7]
[367079255,1750651845450,-1680.23,0.00032876,7]
[367079257,1750651845459,-702.73,0.00032876,7]
[367079259,1750651845469,-494.86745891,0.00032876,7]
[367079261,1750651845478,-491.39623456,0.00032876,7]
[367079263,1750651845487,-490.0,0.00032876,7]
[367079265,1750651845496,-515.45721699,0.00032876,7]
[367079267,1750651845506,-1732.88,0.00032876,7]
[367079269,1750651845515,-1436.48,0.00032876,7]
[367079270,1750651845524,-1070.3,0.00032876,7]
[367079272,1750651845534,-490.0,0.00032876,7]
[367079274,1750651845543,-490.0,0.00032876,7]
[367079276,1750651845552,-1394.64,0.00032876,7]
[367079278,1750651845561,-490.0,0.00032876,7]
[367079280,1750651845571,-494.90934182,0.00032876,7]
[367079282,1750651845580,-490.0,0.00032876,7]
[367079284,1750651845589,-490.0,0.00032876,7]
[367079286,1750651845599,-1030.86,0.00032876,7]
[367079288,1750651845608,-490.0,0.00032876,7]
[367079290,1750651845618,-490.0,0.00032876,7]
[367079292,1750651845627,-490.0,0.00032876,7]
[367079294,1750651845636,-490.0,0.00032876,7]
[367079296,1750651845646,-1131.44,0.00032876,7]
[367079298,1750651845654,-490.0,0.00032876,7]
[367079300,1750651845665,-1799.96,0.00032876,7]
[367079302,1750651845674,-490.0,0.00032876,7]
[367079304,1750651845683,-490.0,0.00032876,7]
[367079306,1750651845695,-485.0817314,0.00032876,7]
[367079308,1750651845703,-490.0,0.00032876,7]
[367079310,1750651845713,-1362.29,0.00032876,7]
[367079311,1750651845723,-490.0,0.00032876,7]
[367079313,1750651845732,-793.38,0.00032876,7]
[367079315,1750651845741,-1038.04,0.00032876,7]
[367079317,1750651845751,-490.0,0.00032876,7]
[367079320,1750651845761,-579.75,0.00032876,7]
[367079323,1750651845770,-490.0,0.00032876,7]
[367079325,1750651845780,-490.0,0.00032876,7]
[367079327,1750651845790,-492.08503644,0.00032876,7]
[367079329,1750651845799,-539.42,0.00032876,7]
[367079331,1750651845808,-1073.78,0.00032876,7]
[367079333,1750651845817,-2460.83,0.00032876,7]
[367079335,1750651845826,-490.0,0.00032876,7]
[367079337,1750651845836,-490.0,0.00032876,7]
[367079339,1750651845845,-514.13,0.00032876,7]
[367079341,1750651845854,-490.0,0.00032876,7]
[367079343,1750651845864,-490.0,0.00032876,7]
[367079345,1750651845873,-495.83476991,0.00032876,7]
[367079347,1750651845882,-963.05,0.00032876,7]
[367079349,1750651845892,-490.0,0.00032876,7]
[367079351,1750651845901,-618.35,0.00032876,7]
[367079353,1750651845910,-490.0,0.00032876,7]
[367079355,1750651845920,-969.7,0.00032876,7]
[367079357,1750651845929,-490.0,0.00032876,2]
[367079359,1750651845938,-1697.22,0.00032876,7]
[367079361,1750651845947,-210.0,0.00032876,7]
[367079363,1750651845956,-490.0,0.00032876,7]
[367079365,1750651845965,-492.0966254,0.00032876,7]
[367079367,1750651845975,-921.5,0.00032876,7]
[367079369,1750651845984,-1228.77,0.00032876,7]
[367079371,1750651845993,-1261.93,0.00032876,7]
[367079373,1750651846003,-490.0,0.00032876,7]
[367079375,1750651846013,-906.2,0.00032876,7]
[367079377,1750651846022,-490.0,0.00032876,7]
[367079379,1750651846031,-490.0,0.00032876,7]
[367079381,1750651846041,-1618.54,0.00032876,7]
[367079383,1750651846051,-490.0,0.00032876,7]
[367079385,1750651846064,-1142.19,0.00032876,7]
[367079387,1750651846073,-522.44119276,0.00032876,7]
[367079389,1750651846083,-354.6142256,0.00032876,7]
[367079391,1750651846092,-490.0,0.00032876,7]
[367079393,1750651846103,-492.08777401,0.00032876,7]
[367079395,1750651846113,-1230.14,0.00032876,7]
[367079397,1750651846123,-490.0,0.00032876,7]
[367079399,1750651846133,-647.57,0.00032876,7]
[367079402,1750651846143,-1768.81,0.00032876,7]
[367079404,1750651846152,-490.0,0.00032876,7]
[367079406,1750651846162,-490.0,0.00032876,7]
[367079408,1750651846171,-1931.12,0.00032876,7]
[367079410,1750651846181,-490.0,0.00032876,7]
[367079412,1750651846189,-500.0,0.00032876,7]
[367079414,1750651846199,-262.38278019,0.00032876,7]
[367079416,1750651846208,-592.66,0.00032876,7]
[367079418,1750651846217,-490.0,0.00032876,7]
[367079419,1750651846226,-490.0,0.00032876,7]
[367079421,1750651846236,-490.0,0.00032876,7]
[367079424,1750651846245,-550.64,0.00032876,7]
[367079425,1750651846255,-1406.03,0.00032876,7]
[367079428,1750651846264,-1399.34,0.00032876,7]
[367079430,1750651846275,-1769.53,0.00032876,7]
[367079432,1750651846284,-490.0,0.00032876,7]
[367079434,1750651846293,-490.0,0.00032876,7]
[367079435,1750651846302,-490.0,0.00032876,7]
[367079438,1750651846311,-490.0,0.00032876,7]
[367079440,1750651846321,-3170.22,0.00032876,7]
[367079442,1750651846331,-490.0,0.00032876,7]
[367079444,1750651846340,-493.9134681,0.00032876,7]
[367079445,1750651846349,-1405.29,0.00032876,7]
[367079447,1750651846358,-490.0,0.00032876,7]
[367079449,1750651846367,-490.0,0.00032876,7]
[367079451,1750651846377,-490.0,0.00032876,7]
[367079453,1750651846387,-487.58534114,0.00032876,7]
[367079455,1750651846397,-1050.91,0.00032876,7]
[367079457,1750651846406,-1096.11,0.00032876,7]
[367079459,1750651846415,-490.0,0.00032876,7]
[367079461,1750651846424,-621.56,0.00032876,7]
[367079463,1750651846434,-1064.72,0.00032876,7]
[367079465,1750651846443,-492.42936655,0.00032876,7]
[367079467,1750651846452,-1199.29,0.00032876,7]
[367079469,1750651846462,-787.56,0.00032876,7]
[367079471,1750651846471,-490.0,0.00032876,7]
[367079473,1750651846480,-490.0,0.00032876,7]
[367079475,1750651846489,-490.0,0.00032876,7]
[367079477,1750651846499,-543.56003654,0.00032876,7]
[367079479,1750651846508,-490.0,0.00032876,7]
[367079481,1750651846517,-490.0,0.00032876,7]
[367079483,1750651846526,-490.0,0.00032876,7]
[367079485,1750651846536,-1044.99,0.00032876,7]
[367079487,1750651846545,-490.0,0.00032876,7]
[367079489,1750651846555,-490.0,0.00032876,7]
[367079491,1750651846564,-669.53,0.00032876,7]
[367079493,1750651846574,-491.54217236,0.00032876,7]
[367079495,1750651846583,-490.0,0.00032876,7]
[367079497,1750651846592,-490.0,0.00032876,7]
[367079498,1750651846601,-490.0,0.00032876,7]
[367079500,1750651846611,-492.73187281,0.00032876,7]
[367079502,1750651846620,-819.91,0.00032876,7]
[367079504,1750651846629,-496.44,0.00032876,7]
[367079506,1750651846638,-500.0,0.00032876,7]
[367079508,1750651846648,-1119.02,0.00032876,7]
[367079510,1750651846657,-490.0,0.00032876,7]
[367079512,1750651846666,-490.0,0.00032876,7]
[367079514,1750651846675,-1131.27,0.00032876,7]
[367079516,1750651846684,-490.0,0.00032876,7]
[367079518,1750651846694,-2219.26,0.00032876,7]
[367079520,1750651846704,-490.0,0.00032876,7]
[367079522,1750651846713,-490.0,0.00032876,7]
[367079524,1750651846723,-490.0,0.00032876,7]
[367079526,1750651846732,-819.29,0.00032876,7]
[367079528,1750651846742,-490.0,0.00032876,7]
[367079530,1750651846751,-212.43114484,0.00032876,7]
[367079532,1750651846762,-490.0,0.00032876,7]
[367079534,1750651846771,-1303.76,0.00032876,7]
[367079536,1750651846780,-490.0,0.00032876,7]
[367079538,1750651846790,-490.0,0.00032876,7]
[367079540,1750651846799,-490.0,0.00032876,7]
[367079542,1750651846809,-833.66,0.00032876,7]
[367079544,1750651846819,-1733.14,0.00032876,7]
[367079546,1750651846828,-490.0,0.00032876,7]
[367079548,1750651846838,-493.6084318,0.00032876,7]
[367079550,1750651846847,-490.0,0.00032876,7]
[367079552,1750651846856,-1420.47,0.00032876,7]
[367079554,1750651846866,-558.11,0.00032876,7]
[367079556,1750651846876,-491.82047903,0.00032876,7]
[367079558,1750651846885,-490.0,0.00032876,7]
[367079560,1750651846895,-490.45554866,0.00032876,7]
[367079562,1750651846905,-1750.34,0.00032876,7]
[367079564,1750651846915,-490.0,0.00032876,7]
[367079566,1750651846924,-953.65,0.00032876,7]
[367079568,1750651846934,-490.0,0.00032876,7]
[367079570,1750651846943,-496.90798925,0.00032876,7]
[367079572,1750651846953,-2896.43,0.00032876,7]
[367079574,1750651846963,-490.0,0.00032876,7]
[367079576,1750651846973,-490.0,0.00032876,7]
[367079578,1750651846982,-490.47097734,0.00032876,7]
[367079580,1750651846992,-490.0,0.00032876,7]
[367079582,1750651847002,-490.0,0.00032876,7]
[367079584,1750651847012,-490.0,0.00032876,7]
[367079585,1750651847022,-490.0,0.00032876,7]
[367079586,1750651847032,-490.5691632,0.00032876,7]
[367079588,1750651847042,-596.68,0.00032876,7]
[367079589,1750651847051,-490.0,0.00032876,7]
[367079591,1750651847064,-1672.84,0.00032876,7]
[367079593,1750651847073,-490.0,0.00032876,7]
[367079595,1750651847083,-490.0,0.00032876,7]
[367079596,1750651847093,-490.0,0.00032876,7]
[367079598,1750651847104,-490.0,0.00032876,7]
[367079600,1750651847114,-873.71,0.00032876,7]
[367079601,1750651847124,-490.0,0.00032876,7]
[367079603,1750651847135,-490.0,0.00032876,7]
[367079605,1750651847145,-2413.53,0.00032876,7]
[367079606,1750651847155,-490.95624951,0.00032876,7]
[367079608,1750651847164,-1178.2,0.00032876,7]
[367079610,1750651847174,-490.0,0.00032876,7]
[367079611,1750651847184,-490.0,0.00032876,7]
[367079613,1750651847194,-490.0,0.00032876,7]
[367079615,1750651847204,-1980.52,0.00032876,7]
[367079616,1750651847214,-490.74757322,0.00032876,7]
[367079618,1750651847223,-490.0,0.00032876,7]
[367079620,1750651847233,-620.77,0.00032876,7]
[367079621,1750651847243,-490.0,0.00032876,7]
[367079623,1750651847254,-490.0,0.00032876,7]
[367079625,1750651847264,-490.0,0.00032876,7]
[367079627,1750651847274,-490.0,0.00032876,7]
[367079628,1750651847283,-490.0,0.00032876,7]
[367079630,1750651847292,-490.0,0.00032876,7]
[367079632,1750651847302,-490.0,0.00032876,7]
[367079634,1750651847312,-490.0,0.00032876,7]
[367079635,1750651847322,-490.0,0.00032876,7]
[367079637,1750651847331,-931.61,0.00032876,7]
[367079639,1750651847341,-1170.72,0.00032876,7]
[367079640,1750651847350,-490.0,0.00032876,7]
[367079642,1750651847360,-490.0,0.00032876,7]
[367079644,1750651847370,-490.0,0.00032876,7]
[367079645,1750651847379,-300.0,0.00032876,7]
[367079647,1750651847389,-490.0,0.00032876,7]
[367079649,1750651847399,-490.0,0.00032876,7]
[367079651,1750651847408,-1173.45,0.00032876,7]
[367079653,1750651847418,-490.0,0.00032876,7]
[367079654,1750651847427,-5000.0,0.00032876,2]
[367079656,1750651847437,-496.15846898,0.00032876,7]
[367079658,1750651847446,-490.0,0.00032876,7]
[367079660,1750651847456,-490.0,0.00032876,7]
[367079662,1750651847465,-490.0,0.00032876,7]
[367079663,1750651847475,-598.94,0.00032876,7]
[367079665,1750651847485,-1538.8,0.00032876,7]
[367079667,1750651847494,-488.0540974,0.00032876,7]
[367079669,1750651847504,-490.0,0.00032876,7]
[367079671,1750651847513,-1518.04,0.00032876,7]
[367079672,1750651847523,-490.0,0.00032876,7]
[367079674,1750651847533,-490.0,0.00032876,7]
[367079676,1750651847543,-490.0,0.00032876,7]
[367079678,1750651847553,-490.0,0.00032876,7]
[367079679,1750651847563,-490.38397467,0.00032876,7]
[367079681,1750651847572,-490.0,0.00032876,7]
[367079683,1750651847582,-490.0,0.00032876,7]
[367079685,1750651847591,-490.0,0.00032876,7]
[367079687,1750651847602,-490.74537372,0.00032876,7]
[367079688,1750651847613,-491.84633019,0.00032876,7]
[367079690,1750651847623,-490.0,0.00032876,7]
[367079692,1750651847633,-490.0,0.00032876,7]
[367079694,1750651847644,-490.0,0.00032876,7]
[367079696,1750651847655,-2524.12,0.00032876,7]
[367079697,1750651847665,-1253.69,0.00032876,7]
[367079699,1750651847676,-490.0,0.00032876,7]
[367079701,1750651847686,-490.0,0.00032876,7]
[367079703,1750651847696,-490.0,0.00032876,7]
[367079705,1750651847706,-657.69,0.00032876,7]
[367079706,1750651847715,-490.0,0.00032876,7]
[367079708,1750651847725,-493.23181421,0.00032876,7]
[367079710,1750651847735,-490.0,0.00032876,7]
[367079712,1750651847745,-490.91036417,0.00032876,7]
[367079714,1750651847755,-1059.4,0.00032876,7]
[367079716,1750651847765,-840.96,0.00032876,7]
[367079717,1750651847775,-490.0,0.00032876,7]
[367079719,1750651847785,-490.0,0.00032876,7]
[367079721,1750651847795,-490.9275877,0.00032876,7]
[367079723,1750651847805,-490.0,0.00032876,7]
[367079725,1750651847814,-1891.79,0.00032876,7]
[367079726,1750651847824,-534.69,0.00032876,7]
[367079728,1750651847833,-490.0,0.00032876,7]
[367079730,1750651847843,-490.0,0.00032876,7]
[367079732,1750651847852,-529.23,0.00032876,7]
[367079734,1750651847862,-822.02,0.00032876,7]
[367079735,1750651847872,-724.63,0.00032876,7]
[367079737,1750651847888,-500.0,0.00032876,7]
[367079739,1750651847903,-1609.08,0.00032876,7]
[367079741,1750651847913,-490.0,0.00032876,7]
[367079743,1750651847923,-490.0,0.00032876,7]
[367079745,1750651847932,-1339.61,0.00032876,7]
[367079747,1750651847942,-490.0,0.00032876,7]
[367079748,1750651847951,-402.97408195,0.00032876,7]
[367079750,1750651847961,-1572.23,0.00032876,7]
[367079752,1750651847970,-490.0,0.00032876,7]
[367079754,1750651847980,-550.51366414,0.00032876,7]
[367079756,1750651847989,-500.0,0.00032876,7]
[367079757,1750651847999,-491.37483275,0.00032876,7]
[367079759,1750651848009,-500.0,0.00032876,7]
[367079761,1750651848018,-500.0,0.00032876,7]
[367079763,1750651848029,-490.0,0.00032876,7]
[367079765,1750651848039,-490.0,0.00032876,7]
[367079767,1750651848050,-895.61,0.00032876,7]
[367079769,1750651848062,-860.61,0.00032876,7]
[367079770,1750651848072,-490.0,0.00032876,7]
[367079772,1750651848081,-490.0,0.00032876,7]
[367079774,1750651848091,-2665.79,0.00032876,7]
[367079776,1750651848102,-490.0,0.00032876,7]
[367079778,1750651848112,-1484.2,0.00032876,7]
[367079780,1750651848122,-1861.11,0.00032876,7]
[367079781,1750651848132,-1003.54,0.00032876,7]
[367079783,1750651848142,-490.0,0.00032876,7]
[367079785,1750651848152,-1224.99,0.00032876,7]
[367079787,1750651848162,-490.0,0.00032876,7]
[367079789,1750651848172,-490.0,0.00032876,7]
[367079791,1750651848183,-490.0,0.00032876,7]
[367079792,1750651848192,-492.65034899,0.00032876,7]
[367079794,1750651848202,-490.0,0.00032876,7]
[367079796,1750651848212,-490.0,0.00032876,7]
[367079798,1750651848223,-1635.01,0.00032876,7]
[367079800,1750651848233,-825.186279,0.00032876,7]
[367079802,1750651848243,-490.0,0.00032876,7]
[367079803,1750651848253,-490.0,0.00032876,7]
[367079805,1750651848263,-825.186279,0.00032876,7]
[367079807,1750651848273,-490.0,0.00032876,7]
[367079809,1750651848282,-825.186279,0.00032876,7]
[367079811,1750651848292,-490.0,0.00032876,7]
[367079812,1750651848303,-825.186279,0.00032876,7]
[367079814,1750651848312,-490.0,0.00032876,7]
[367079816,1750651848323,-2657.09,0.00032876,7]
[367079818,1750651848332,-1723.79,0.00032876,7]
[367079820,1750651848342,-490.0,0.00032876,7]
[367079821,1750651848351,-490.0,0.00032876,7]
[367079823,1750651848361,-490.0,0.00032876,7]
[367079825,1750651848371,-825.186279,0.00032876,7]
[367079827,1750651848380,-825.186279,0.00032876,7]
[367079829,1750651848391,-490.0,0.00032876,7]
[367079831,1750651848401,-825.186279,0.00032876,7]
[367079833,1750651848411,-825.186279,0.00032876,7]
[367079834,1750651848420,-750.93,0.00032876,7]
[367079836,1750651848430,-481.97820152,0.00032876,7]
[367079838,1750651848441,-490.92239133,0.00032876,7]
[367079840,1750651848454,-490.0,0.00032876,7]
[367079842,1750651848464,-490.0,0.00032876,7]
[367079844,1750651848474,-490.0,0.00032876,7]
[367079846,1750651848484,-1174.24,0.00032876,7]
[367079848,1750651848494,-490.0,0.00032876,7]
[367079849,1750651848504,-2072.79,0.00032876,7]
[367079851,1750651848515,-490.0,0.00032876,7]
[367079853,1750651848526,-490.0,0.00032876,7]
[367079855,1750651848536,-491.70359252,0.00032876,7]
[367079857,1750651848548,-490.0,0.00032876,7]
[367079859,1750651848558,-636.1,0.00032876,7]
[367079861,1750651848568,-603.14433216,0.00032876,7]
[367079863,1750651848579,-221.38270789,0.00032876,7]
[367079864,1750651848590,-255.44587658,0.00032876,7]
[367079866,1750651848600,-490.0,0.00032876,7]
[367079868,1750651848610,-490.0,0.00032876,7]
[367079870,1750651848620,-714.74,0.00032876,7]
[367079872,1750651848630,-490.0,0.00032876,7]
[367079874,1750651848642,-2081.51,0.00032876,7]
[367079876,1750651848652,-811.29,0.00032876,7]
[367079877,1750651848663,-1836.6,0.00032876,7]
[367079879,1750651848673,-1772.58,0.00032876,7]
[367079881,1750651848684,-490.0,0.00032876,7]
[367079883,1750651848694,-1100.76,0.00032876,7]
[367079885,1750651848704,-490.0,0.00032876,7]
[367079887,1750651848714,-490.0,0.00032876,7]
[367079888,1750651848725,-490.0,0.00032876,7]
[367079889,1750651848735,-490.0,0.00032876,7]
[367079890,1750651848745,-490.0,0.00032876,7]
[367079891,1750651848756,-490.0,0.00032876,7]
[367079892,1750651848766,-620.38,0.00032876,7]
[367079893,1750651848776,-490.0,0.00032876,7]
[367079894,1750651848789,-157.587422,0.00032876,7]
[367079895,1750651848799,-490.0,0.00032876,7]
[367079896,1750651848809,-157.587422,0.00032876,7]
[367079897,1750651848819,-157.587422,0.00032876,7]
[367079898,1750651848830,-490.0,0.00032876,7]
[367079899,1750651848840,-157.587422,0.00032876,7]
[367079900,1750651848849,-207.76947,0.00032876,7]
[367079901,1750651848860,-627.82,0.00032876,7]
[367079902,1750651848870,-207.76947,0.00032876,7]
[367079903,1750651848881,-684.73,0.00032876,7]
[367079904,1750651848891,-1622.93,0.00032876,7]
[367079905,1750651848902,-490.0,0.00032876,7]
[367079906,1750651849197,-207.76947,0.00032876,7]
[367079907,1750651849208,-1554.53,0.00032876,7]
[367079908,1750651849218,-207.76947,0.00032876,7]
[367079909,1750651849228,-490.0,0.00032876,7]
[367079910,1750651849237,-157.587422,0.00032876,7]
[367079911,1750651849247,-490.0,0.00032876,7]
[367079912,1750651849257,-157.587422,0.00032876,7]
[367079913,1750651849266,-157.587422,0.00032876,7]
[367079914,1750651849276,-207.76947,0.00032876,7]
[367079915,1750651849286,-490.0,0.00032876,7]
[367079916,1750651849296,-157.587422,0.00032876,7]
[367079917,1750651849306,-490.0,0.00032876,7]
[367079918,1750651849316,-2152.69,0.00032876,7]
[367079919,1750651849325,-939.1,0.00032876,7]
[367079920,1750651849334,-207.76947,0.00032876,7]
[367079921,1750651849344,-490.0,0.00032876,7]
[367079922,1750651849354,-2152.69,0.00032876,7]
[367079923,1750651849363,-207.76947,0.00032876,7]
[367079924,1750651849373,-2152.69,0.00032876,7]
[367079925,1750651849384,-2152.69,0.00032876,7]
[367079926,1750651849394,-207.76947,0.00032876,7]
[367079927,1750651849403,-2152.69,0.00032876,7]
[367079928,1750651849413,-181.13951866,0.00032876,7]
[367079929,1750651849422,-491.71436548,0.00032876,7]
[367079930,1750651849432,-2152.69,0.00032876,7]
[367079931,1750651849442,-938.52,0.00032876,7]
[367079932,1750651849451,-2152.69,0.00032876,7]
[367079933,1750651849460,-2152.69,0.00032876,7]
[367079934,1750651849470,-2152.69,0.00032876,7]
[367079935,1750651849479,-2152.69,0.00032876,7]
[367079936,1750651849489,-2040.05,0.00032876,7]
[367079937,1750651849499,-2152.69,0.00032876,7]
[367079938,1750651849508,-490.0,0.00032876,7]
[367079939,1750651849518,-492.25410079,0.00032876,7]
[367079940,1750651849528,-2152.69,0.00032876,7]
[367079942,1750651849539,-1861.55,0.00032876,7]
[367079944,1750651849549,-2152.69,0.00032876,7]
[367079946,1750651849559,-2152.69,0.00032876,7]
[367079948,1750651849569,-2152.69,0.00032876,7]
[367079950,1750651849579,-2152.69,0.00032876,7]
[367079952,1750651849589,-2152.69,0.00032876,7]
[367079954,1750651849599,-490.0,0.00032876,7]
[367079956,1750651849609,-2152.69,0.00032876,7]
[367079959,1750651849619,-490.0,0.00032876,7]
[367079960,1750651849629,-2152.69,0.00032876,7]
[367079962,1750651849638,-2152.69,0.00032876,7]
[367079964,1750651849648,-2152.69,0.00032876,7]
[367079966,1750651849658,-490.0,0.00032876,7]
[367079968,1750651849667,-2152.69,0.00032876,7]
[367079970,1750651849677,-490.0,0.00032876,7]
[367079972,1750651849687,-2152.69,0.00032876,7]
[367079974,1750651849696,-2152.75475314,0.00032876,7]
[367079976,1750651849706,-490.0,0.00032876,7]
[367079978,1750651849716,-403.983208,0.00032876,7]
[367079980,1750651849725,-151.0,0.00032876,7]
[367079982,1750651849736,-17425.81,0.00032876,7]
[367079984,1750651849745,-403.983208,0.00032876,7]
[367079986,1750651849755,-151.0,0.00032876,7]
[367079988,1750651849764,-403.983208,0.00032876,7]
[367079991,1750651849774,-151.0,0.00032876,7]
[367079993,1750651849785,-403.983208,0.00032876,7]
[367079995,1750651849794,-151.0,0.00032876,7]
[367079996,1750651849804,-403.983208,0.00032876,7]
[367079998,1750651849813,-151.0,0.00032876,7]
[367080000,1750651849822,-596.22602946,0.00032876,7]
[367080002,1750651849832,-810.08,0.00032876,7]
[367080004,1750651849842,-685.74,0.00032876,7]
[367080007,1750651849851,-1997.24,0.00032876,7]
[367080009,1750651849860,-403.983208,0.00032876,7]
[367080011,1750651849870,-151.0,0.00032876,7]
[367080013,1750651849879,-403.983208,0.00032876,7]
[367080015,1750651849888,-491.63655973,0.00032876,7]
[367080017,1750651849897,-151.0,0.00032876,7]
[367080019,1750651849906,-403.983208,0.00032876,7]
[367080021,1750651849916,-151.0,0.00032876,7]
[367080023,1750651849927,-403.983208,0.00032876,7]
[367080025,1750651849936,-151.0,0.00032876,7]
[367080027,1750651849945,-403.983208,0.00032876,7]
[367080029,1750651849954,-1969.82,0.00032876,7]
[367080031,1750651849963,-151.0,0.00032876,7]
[367080032,1750651849972,-490.0,0.00032876,7]
[367080034,1750651849981,-490.0,0.00032876,7]
[367080036,1750651849990,-4636.86,0.00032876,7]
[367080038,1750651849999,-490.0,0.00032876,7]